bitfinex/quotes_BTCUSD_20241111
["timestamp","ask_amount","ask_price","bid_price","bid_amount"]
[1731330206047,0.0484,82070.0,82066.0,0.015278]
[1731330206229,1.621851,82067.0,82066.0,0.010278]
[1731330206430,1.5,82067.0,82066.0,0.010278]
[1731330206838,1.5,82067.0,82066.0,0.15747323]
[1731330207259,0.18334607,82081.0,82067.0,0.231518]
[1731330207420,0.12594221,82080.0,82079.0,0.121833]
[1731330207827,1.62594221,82080.0,82079.0,0.121833]
[1731330208131,0.25,82077.0,82067.0,0.121851]
[1731330208508,0.12594221,82076.0,82066.0,0.012124]
[1731330208619,0.12594221,82076.0,82066.0,0.011124]
[1731330208620,0.29480107,82076.0,82066.0,0.011124]
[1731330208828,0.121842,82073.0,82066.0,0.011124]
[1731330209031,0.007,82067.0,82066.0,0.011124]
[1731330209243,1.63294221,82067.0,82066.0,0.011124]
[1731330209460,1.62594221,82067.0,82066.0,0.011124]
[1731330209880,1.63094221,82067.0,82066.0,0.011124]
[1731330210308,1.63694221,82067.0,82066.0,0.011124]
[1731330210506,1.75879321,82067.0,82066.0,0.011124]
[1731330211225,1.75279321,82067.0,82066.0,0.011124]
[1731330211395,1.75979321,82067.0,82066.0,0.011124]
[1731330211585,1.76079321,82067.0,82066.0,0.011124]
[1731330211984,1.75279321,82067.0,82066.0,0.011124]
[1731330212409,1.76679321,82067.0,82066.0,0.011124]
[1731330212853,1.75279321,82067.0,82066.0,0.011124]
[1731330212972,1.76679321,82067.0,82066.0,0.011124]
[1731330213185,1.78079321,82067.0,82066.0,0.011124]
[1731330213400,1.76679321,82067.0,82066.0,0.011124]
[1731330213690,1.78079321,82067.0,82066.0,0.011124]
[1731330213863,1.76679321,82067.0,82066.0,0.011124]
[1731330214245,1.78079321,82067.0,82066.0,0.011124]
[1731330214450,1.76679321,82067.0,82066.0,0.011124]
[1731330215002,1.79479321,82067.0,82066.0,0.001124]
[1731330215211,1.78079321,82067.0,82066.0,0.001124]
[1731330215609,1.79479321,82067.0,82066.0,0.001124]
[1731330216042,1.76679321,82067.0,82066.0,0.001124]
[1731330216262,1.75279321,82067.0,82066.0,0.001124]
[1731330216481,1.76679321,82067.0,82066.0,0.001124]
[1731330216622,1.78079321,82067.0,82066.0,0.001124]
[1731330217006,1.79479321,82067.0,82066.0,0.001124]
[1731330217822,1.76679321,82067.0,82066.0,0.001124]
[1731330218030,1.78079321,82067.0,82066.0,0.001124]
[1731330218249,1.76679321,82067.0,82066.0,0.001124]
[1731330218489,0.255,82048.0,82044.0,0.001378]
[1731330218764,0.11,82038.0,82037.0,0.00023028]
[1731330218897,0.11,82038.0,82032.0,0.18334607]
[1731330218898,0.381902,82033.0,82032.0,0.18334607]
[1731330219112,0.381902,82033.0,82021.0,0.18472407]
[1731330219113,0.25,82022.0,82021.0,0.001378]
[1731330219241,0.005,82031.0,82021.0,0.001378]
[1731330219242,0.25,82024.0,82021.0,0.001378]
[1731330219635,0.243811,82031.0,82021.0,0.001378]
[1731330219636,0.12594221,82023.0,82022.0,0.121918]
[1731330220101,0.25,82038.0,82021.0,0.0246895]
[1731330220342,0.25,82038.0,82034.0,0.121899]
[1731330220525,1.5,82037.0,82031.0,0.231619]
[1731330220843,1.5,82037.0,82021.0,0.001378]
[1731330221083,1.5,82037.0,82036.0,0.121897]
[1731330221318,1.62594221,82037.0,82034.0,0.1219]
[1731330221519,1.62594221,82037.0,82023.0,0.121917]
[1731330221520,0.014,82024.0,82023.0,0.121917]
[1731330221941,1.62594221,82037.0,82035.0,0.121898]
[1731330222114,1.5,82037.0,82036.0,0.121897]
[1731330222314,0.13994221,82037.0,82036.0,0.121897]
[1731330222682,0.12594221,82037.0,82036.0,0.121897]
[1731330223088,0.13994221,82037.0,82036.0,0.121897]
[1731330223282,0.15394221,82037.0,82036.0,0.121897]
[1731330223719,0.15394221,82037.0,82036.0,0.12461745]
[1731330223967,0.04,82037.0,82036.0,0.12461745]
[1731330224388,0.026,82037.0,82036.0,0.12461745]
[1731330224792,0.04,82037.0,82036.0,0.29256347]
[1731330225017,0.04,82037.0,82036.0,0.12461745]
[1731330225220,0.026,82037.0,82036.0,0.12461745]
[1731330225338,0.012,82037.0,82036.0,0.12461745]
[1731330225549,0.00183041,82041.0,82040.0,0.121891]
[1731330225757,0.12777262,82041.0,82040.0,0.12462695]
[1731330226778,0.12977262,82041.0,82040.0,0.12462695]
[1731330227396,0.12977262,82041.0,82040.0,0.00273595]
[1731330227617,0.12977262,82041.0,82037.0,0.231602]
[1731330227819,0.00383041,82041.0,82040.0,0.121891]
[1731330228169,0.00783041,82041.0,82040.0,0.12462469]
[1731330228381,0.00783041,82041.0,82040.0,0.00273369]
[1731330228602,0.00383041,82041.0,82040.0,0.12462469]
[1731330228824,0.13077262,82041.0,82040.0,0.00273369]
[1731330229043,0.13077262,82041.0,82040.0,0.12462469]
[1731330229252,0.13077262,82041.0,82040.0,0.00273369]
[1731330229253,0.12777262,82041.0,82040.0,0.00273369]
[1731330229464,0.13077262,82041.0,82040.0,0.00273369]
[1731330229665,0.13577262,82041.0,82033.0,0.121901]
[1731330229866,1.62594221,82040.0,82030.0,0.23162]
[1731330230091,1.62594221,82040.0,82034.0,0.00273438]
[1731330230298,1.62594221,82040.0,82034.0,0.1219]
[1731330230712,1.62594221,82040.0,82035.0,0.00276359]
[1731330231154,1.62594221,82040.0,82034.0,0.1219]
[1731330231408,1.62594221,82040.0,82021.0,0.233025]
[1731330231409,1.62594221,82040.0,82036.0,0.000847]
[1731330231624,1.62594221,82040.0,82036.0,0.122744]
[1731330231842,1.62594221,82040.0,82039.0,0.121893]
[1731330232048,1.62594221,82040.0,82036.0,0.000847]
[1731330232672,1.62894221,82040.0,82036.0,0.000847]
[1731330232883,1.62994221,82040.0,82036.0,0.000847]
[1731330233113,1.62894221,82040.0,82036.0,0.000847]
[1731330233301,1.74783421,82040.0,82036.0,0.000847]
[1731330233503,0.121895,82038.0,82036.0,0.000847]
[1731330233709,0.12594221,82037.0,82036.0,0.000847]
[1731330233950,0.24783821,82037.0,82036.0,0.000847]
[1731330234567,0.34622315,82037.0,82036.0,0.000847]
[1731330234769,0.50283821,82037.0,82036.0,0.000847]
[1731330235211,0.65633821,82037.0,82036.0,0.000847]
[1731330235440,0.67244385,82037.0,82036.0,0.000847]
[1731330235860,2.20664333,82037.0,82036.0,0.000847]
[1731330236089,2.32058554,82037.0,82036.0,0.000847]
[1731330236336,2.33458554,82037.0,82036.0,0.000847]
[1731330236645,2.34858554,82037.0,82036.0,0.000847]
[1731330236854,2.32458554,82037.0,82036.0,0.000847]
[1731330237487,2.33858554,82037.0,82036.0,0.000847]
[1731330237699,2.32458554,82037.0,82036.0,0.000847]
[1731330237919,2.19864333,82037.0,82036.0,0.000847]
[1731330238136,2.21264333,82037.0,82036.0,0.000847]
[1731330238559,2.19864333,82037.0,82036.0,0.000847]
[1731330238764,2.18464333,82037.0,82036.0,0.000847]
[1731330238997,2.21264333,82037.0,82036.0,0.000847]
[1731330239217,2.58858554,82037.0,82036.0,0.000847]
[1731330240343,2.46264333,82037.0,82036.0,0.000847]
[1731330241239,2.98564333,82037.0,82036.0,0.000847]
[1731330241452,2.46264333,82037.0,82036.0,0.000847]
[1731330242154,2.44864333,82037.0,82036.0,0.000847]
[1731330242582,2.46264333,82037.0,82036.0,0.000847]
[1731330242799,2.61158554,82037.0,82036.0,0.000847]
[1731330243042,2.59758554,82037.0,82036.0,0.000847]
[1731330243255,2.46264333,82037.0,82036.0,0.000847]
[1731330243481,2.33574733,82037.0,82036.0,0.000847]
[1731330243700,1.88994221,82037.0,82036.0,0.122744]
[1731330243920,0.15394221,82037.0,82036.0,0.122744]
[1731330244181,0.042,82037.0,82036.0,0.1813415]
[1731330244371,0.014,82037.0,82036.0,0.1813415]
[1731330244593,0.00352441,82041.0,82040.0,0.121891]
[1731330245653,0.00352441,82041.0,82036.0,0.000847]
[1731330245654,0.121896,82037.0,82036.0,0.000847]
[1731330245889,0.26783821,82037.0,82036.0,0.000847]
[1731330246106,0.25,82022.0,82021.0,0.001378]
[1731330246320,0.37594221,82022.0,82021.0,0.001378]
[1731330246529,1.87594221,82022.0,82021.0,0.001378]
[1731330247598,1.88994221,82022.0,82021.0,0.001378]
[1731330248060,1.88994221,82022.0,82021.0,0.123297]
[1731330248504,1.514,82022.0,82021.0,0.1819667]
[1731330248711,0.014,82022.0,82021.0,0.1819667]
[1731330249122,0.014,82022.0,82021.0,0.123297]
[1731330249123,0.028,82022.0,82021.0,0.123297]
[1731330249398,0.014,82022.0,82021.0,0.123297]
[1731330249622,0.014,82022.0,82021.0,0.124297]
[1731330249829,0.014,82022.0,82021.0,0.229297]
[1731330250038,0.014,82022.0,82021.0,0.228297]
[1731330250251,0.014,82022.0,82021.0,0.124297]
[1731330250667,0.18334607,82036.0,82031.0,0.121904]
[1731330250874,0.12594221,82035.0,82033.0,0.121901]
[1731330251312,0.12594221,82035.0,82034.0,0.1219]
[1731330251528,0.00352441,82041.0,82040.0,0.121891]
[1731330251731,0.12946662,82041.0,82040.0,0.121891]
[1731330252165,1.62946662,82041.0,82040.0,0.121891]
[1731330252995,1.64346662,82041.0,82040.0,0.121891]
[1731330253226,1.64346662,82041.0,82040.0,0.12213327]
[1731330253435,0.15046662,82041.0,82040.0,0.12213327]
[1731330253641,0.13646662,82041.0,82040.0,0.12213327]
[1731330254286,0.01052441,82041.0,82040.0,0.12213327]
[1731330254727,0.01852441,82041.0,82040.0,0.12213327]
[1731330255373,0.01152441,82041.0,82040.0,0.12213327]
[1731330255581,0.01252441,82041.0,82040.0,0.12313327]
[1731330256050,0.00352441,82041.0,82040.0,0.12213327]
[1731330256260,0.007,82041.0,82040.0,0.1806664]
[1731330256466,0.007,82041.0,82040.0,0.12213327]
[1731330257128,0.007,82041.0,82040.0,0.22213329]
[1731330257334,0.007,82041.0,82040.0,0.22413329]
[1731330257535,0.007,82041.0,82040.0,0.29767942]
[1731330257972,0.015,82041.0,82040.0,0.30267942]
[1731330258188,0.015,82041.0,82040.0,0.40297942]
[1731330258394,0.007,82041.0,82040.0,0.40297943]
[1731330258623,0.18334607,82054.0,82053.0,0.121872]
[1731330258803,0.18334607,82054.0,82053.0,0.1342689]
[1731330259223,0.25,82060.0,82059.0,0.121863]
[1731330259468,0.37594221,82060.0,82059.0,0.1220727]
[1731330259683,0.37594221,82060.0,82059.0,0.0002097]
[1731330259919,0.37594221,82060.0,82059.0,0.1220727]
[1731330263209,1.90094221,82060.0,82059.0,0.1220727]
[1731330264713,1.90094221,82060.0,82059.0,0.18058987]
[1731330265132,1.90094221,82060.0,82059.0,0.1220727]
[1731330266402,1.65094221,82060.0,82059.0,0.1220727]
[1731330266846,0.025,82060.0,82059.0,0.1220727]
[1731330269005,0.026694,82060.0,82059.0,0.1220727]
[1731330269877,0.15263621,82060.0,82059.0,0.1220727]
[1731330270094,0.026694,82060.0,82059.0,0.1220727]
[1731330270308,1.526694,82060.0,82059.0,0.1220727]
[1731330272329,1.526694,82060.0,82059.0,0.18058957]
[1731330272772,1.526694,82060.0,82059.0,0.1220727]
[1731330275253,1.526694,82060.0,82059.0,0.0002097]
[1731330275473,1.526694,82060.0,82059.0,0.1220727]
[1731330275709,1.526694,82060.0,82059.0,0.0002097]
[1731330275946,1.526694,82060.0,82059.0,0.1220727]
[1731330276577,1.526694,82060.0,82059.0,0.0002097]
[1731330276995,1.77449821,82060.0,82059.0,0.0002097]
[1731330277431,1.65263621,82060.0,82059.0,0.0002097]
[1731330277638,1.65263621,82060.0,82059.0,0.1220727]
[1731330277851,1.65263621,82060.0,82059.0,0.0002097]
[1731330278052,1.65263621,82060.0,82059.0,0.1220727]
[1731330278258,1.65263621,82060.0,82059.0,0.0002097]
[1731330280903,1.65263621,82060.0,82059.0,0.1220727]
[1731330281364,1.65446526,82060.0,82059.0,0.0002097]
[1731330281573,1.65446526,82060.0,82059.0,0.1229197]
[1731330281791,1.65446526,82060.0,82059.0,0.0010567]
[1731330281996,1.65446526,82060.0,82059.0,0.1229197]
[1731330282449,1.52852305,82060.0,82059.0,0.1229197]
[1731330282894,1.526694,82060.0,82059.0,0.1229197]
[1731330283126,1.52852328,82060.0,82059.0,0.12291971]
[1731330283791,1.65446549,82060.0,82059.0,0.00105671]
[1731330284008,2.02449821,82060.0,82059.0,0.00105671]
[1731330286802,0.12189,82041.0,82036.0,0.000847]
[1731330287034,0.37133221,82041.0,82036.0,0.000847]
[1731330287503,1.87633221,82041.0,82036.0,0.000847]
[1731330287857,2.69897442,82041.0,82036.0,0.000847]
[1731330288736,2.70320319,82041.0,82036.0,0.000847]
[1731330289192,0.25,82037.0,82021.0,0.001378]
[1731330289419,0.62636021,82022.0,82021.0,0.001378]
[1731330289850,2.12636021,82022.0,82021.0,0.001378]
[1731330290524,2.12636021,82022.0,82004.0,0.121944]
[1731330290525,0.25,82010.0,82004.0,0.121944]
[1731330290735,0.12594221,82009.0,82002.0,0.231701]
[1731330290977,0.18334607,82008.0,81993.0,0.00023033]
[1731330291190,0.12594221,82007.0,81997.0,0.1]
[1731330291402,0.12594221,82007.0,81990.0,0.231735]
[1731330291622,0.18334607,82000.0,81996.0,0.231717]
[1731330291840,0.12594221,81999.0,81985.0,0.0873]
[1731330292060,0.12594221,81999.0,81998.0,0.121954]
[1731330292961,1.5,82006.0,82005.0,0.121943]
[1731330293174,1.62594221,82006.0,82005.0,0.121943]
[1731330294723,1.63994221,82006.0,81996.0,0.231718]
[1731330294940,1.524,82006.0,82005.0,0.121943]
[1731330295151,1.5,82006.0,82005.0,0.121943]
[1731330295364,1.5,82006.0,82005.0,0.120043]
[1731330295968,1.504,82006.0,82005.0,0.178388]
[1731330296314,1.504,82006.0,82005.0,0.120043]
[1731330296512,1.51,82006.0,82005.0,0.120043]
[1731330296832,1.504,82006.0,82005.0,0.120043]
[1731330297034,0.12994221,82006.0,82005.0,0.120043]
[1731330297234,0.12994221,82006.0,82001.0,0.463407]
[1731330297235,0.13794221,82006.0,82001.0,0.231703]
[1731330297441,1.62594221,82005.0,81995.0,0.005]
[1731330297615,1.62594221,82005.0,82004.0,0.121945]
[1731330297817,0.12594221,82005.0,82004.0,0.121945]
[1731330299275,0.02,82006.0,82005.0,0.121943]
[1731330299483,0.014,82006.0,82005.0,0.121943]
[1731330299863,1.514,82006.0,82005.0,0.121943]
[1731330300079,1.88994221,82006.0,82003.0,0.121945]
[1731330300285,1.88994221,82006.0,82004.0,0.121944]
[1731330300286,0.12594221,82005.0,82004.0,0.121944]
[1731330300864,0.13494221,82005.0,82004.0,0.121944]
[1731330301528,0.009,82005.0,82004.0,0.121944]
[1731330301736,0.003,82006.0,82005.0,0.121943]
[1731330302457,1.5,82020.0,82019.0,0.121922]
[1731330302676,1.62594221,82020.0,82019.0,0.121922]
[1731330302897,1.62594221,82020.0,82009.0,0.121937]
[1731330302898,0.25,82010.0,82009.0,0.121937]
[1731330303126,0.12594221,82010.0,82009.0,0.121937]
[1731330303341,0.25,82023.0,82019.0,0.121922]
[1731330303555,0.006,82006.0,82005.0,0.121943]
[1731330303988,0.12594221,82022.0,82021.0,0.121919]
[1731330304621,0.12594221,82022.0,82019.0,0.23165]
[1731330304828,0.12594221,82022.0,82005.0,0.231692]
[1731330304829,0.12594221,82022.0,82021.0,0.121919]
[1731330305669,0.13494221,82022.0,82021.0,0.121919]
[1731330306110,0.13494221,82022.0,81994.0,0.0832]
[1731330306346,0.13494221,82022.0,81974.0,0.18334607]
[1731330306347,0.1249,82011.0,81995.0,0.18334607]
[1731330306585,0.12594221,82010.0,82005.0,0.000845]
[1731330307094,0.30928828,82010.0,82005.0,0.000845]
[1731330307323,1.62594221,82006.0,82005.0,0.000845]
[1731330307744,0.12594221,82006.0,82005.0,0.122788]
[1731330308609,0.12594221,82006.0,82005.0,0.000845]
[1731330308833,0.12594221,82006.0,82005.0,0.122788]
[1731330309044,0.13594221,82006.0,82005.0,0.000845]
[1731330309248,0.13594221,82006.0,82005.0,0.122788]
[1731330310103,0.12594221,82006.0,82005.0,0.122788]
[1731330310375,0.13594221,82006.0,82005.0,0.122788]
[1731330311041,0.13594221,82006.0,82005.0,0.12860046]
[1731330311254,0.01,82006.0,82005.0,0.12860046]
[1731330312298,0.01,82006.0,82005.0,0.19552051]
[1731330312534,0.01,82006.0,82005.0,0.12860046]
[1731330312765,0.01,82006.0,82005.0,0.122788]
[1731330313951,0.13594221,82006.0,82005.0,0.122788]
[1731330314800,0.006,82006.0,82005.0,0.122788]
[1731330315011,0.004,82006.0,82005.0,0.1814068]
[1731330315231,0.004,82006.0,82005.0,0.122788]
[1731330315676,0.004,82006.0,82005.0,0.12860046]
[1731330316287,0.18334607,82017.0,82016.0,0.121927]
[1731330316537,0.30928828,82017.0,82016.0,0.121927]
[1731330316736,1.80928828,82017.0,82016.0,0.121927]
[1731330316868,1.80928828,82017.0,82016.0,0.12813408]
[1731330316869,1.62594221,82017.0,82016.0,0.12813408]
[1731330317691,1.65394221,82017.0,82016.0,0.12813408]
[1731330318139,1.65394221,82017.0,82016.0,0.121927]
[1731330319165,0.1292,82016.0,82005.0,0.000845]
[1731330319399,0.12193,82014.0,82009.0,0.121937]
[1731330319594,0.25,82009.0,82005.0,0.000845]
[1731330319818,0.12594221,82008.0,82007.0,0.12194]
[1731330320226,1.62594221,82008.0,82005.0,0.000845]
[1731330320450,0.12594221,82008.0,82006.0,0.121942]
[1731330320669,0.12594221,82008.0,82007.0,0.12194]
[1731330320873,1.62594221,82008.0,82007.0,0.12194]
[1731330321321,1.63994221,82008.0,82007.0,0.12194]
[1731330321545,1.65094221,82008.0,82007.0,0.12194]
[1731330321749,1.63694221,82008.0,82007.0,0.12194]
[1731330322111,1.64994221,82008.0,82007.0,0.12194]
[1731330322364,0.14994221,82008.0,82007.0,0.12194]
[1731330322985,0.16394221,82008.0,82007.0,0.12194]
[1731330324280,0.16394221,82008.0,82007.0,0.10594]
[1731330325581,0.16394221,82008.0,82005.0,0.000845]
[1731330325836,0.16394221,82008.0,82007.0,0.12194]
[1731330326052,0.16394221,82008.0,82005.0,0.000845]
[1731330326254,0.16394221,82008.0,82007.0,0.12194]
[1731330326471,0.14994221,82008.0,82007.0,0.12194]
[1731330326687,0.16294221,82008.0,82007.0,0.12194]
[1731330326912,1.66294221,82008.0,82005.0,0.000845]
[1731330327150,1.64994221,82008.0,82007.0,0.12194]
[1731330327580,1.64994221,82008.0,82005.0,0.000845]
[1731330327581,1.66394221,82008.0,82005.0,0.000845]
[1731330327785,1.66394221,82008.0,82005.0,0.122788]
[1731330327994,1.63994221,82008.0,82005.0,0.122788]
[1731330328202,0.121942,82006.0,82005.0,0.000845]
[1731330328499,0.24788421,82006.0,82005.0,0.000845]
[1731330328705,0.35192679,82006.0,82005.0,0.000845]
[1731330328907,0.32988421,82006.0,82005.0,0.000845]
[1731330330008,0.34188421,82006.0,82005.0,0.000845]
[1731330330496,0.35588421,82006.0,82005.0,0.000845]
[1731330331195,0.25,81982.0,81971.0,0.18334607]
[1731330331416,0.25,81982.0,81981.0,0.31864997]
[1731330331621,0.319613,81997.0,81981.0,0.0916812]
[1731330331622,0.25,81994.0,81981.0,0.0916812]
[1731330331843,0.25,81994.0,81993.0,0.121961]
[1731330332081,0.27474602,81994.0,81993.0,0.121961]
[1731330332379,0.27474602,81994.0,81993.0,0.00372234]
[1731330332476,0.40068823,81994.0,81993.0,0.00372234]
[1731330332708,0.37594221,81994.0,81993.0,0.121961]
[1731330333362,0.37594221,81994.0,81993.0,0.12568334]
[1731330333789,0.37594221,81994.0,81993.0,0.00372234]
[1731330334053,0.13194221,81994.0,81991.0,0.23173]
[1731330334260,0.13194221,81994.0,81993.0,0.12568334]
[1731330334261,0.006,81994.0,81993.0,0.12568334]
[1731330334465,0.006,81994.0,81993.0,0.121961]
[1731330334700,0.014,81994.0,81993.0,0.12568334]
[1731330334915,0.15394221,81994.0,81993.0,0.12568334]
[1731330335129,0.15394221,81994.0,81993.0,0.00372234]
[1731330335369,0.16294221,81994.0,81993.0,0.00372234]
[1731330335619,0.14894221,81994.0,81991.0,0.121964]
[1731330335829,0.25,81989.0,81976.0,0.00138]
[1731330336034,0.12594221,81988.0,81979.0,0.231764]
[1731330336475,0.12594221,81988.0,81984.0,0.121973]
[1731330336682,0.12594221,81988.0,81982.0,0.231758]
[1731330336925,0.12594221,81988.0,81987.0,0.12197]
[1731330337768,0.13194221,81988.0,81987.0,0.12197]
[1731330337979,0.14194221,81988.0,81987.0,0.12197]
[1731330338184,0.15494221,81988.0,81987.0,0.12197]
[1731330338395,0.15494221,81988.0,81987.0,0.18385049]
[1731330338396,0.023,81988.0,81987.0,0.18385049]
[1731330338611,0.01,81988.0,81987.0,0.18185049]
[1731330338826,0.021,81988.0,81987.0,0.12197]
[1731330339455,0.011,81988.0,81987.0,0.12197]
[1731330339865,0.021,81988.0,81987.0,0.12197]
[1731330340082,0.01,81988.0,81987.0,0.12197]
[1731330340292,0.046,81996.0,81995.0,0.121958]
[1731330340498,1.67194221,81996.0,81994.0,0.121959]
[1731330340718,1.546,81996.0,81995.0,0.121958]
[1731330341547,1.556,81996.0,81995.0,0.121958]
[1731330341757,1.556,81996.0,81995.0,0.12587527]
[1731330341930,1.546,81996.0,81995.0,0.12587527]
[1731330342386,1.67194221,81996.0,81995.0,0.00391727]
[1731330342798,1.67194221,81996.0,81973.0,0.005]
[1731330342799,0.25,81993.0,81973.0,0.005]
[1731330343004,0.12594221,81991.0,81973.0,0.005]
[1731330343213,0.12594221,81991.0,81975.0,0.231777]
[1731330343412,1.5,81988.0,81985.0,0.121972]
[1731330343622,0.12594221,81987.0,81986.0,0.121972]
[1731330344262,0.12594221,81987.0,81986.0,0.00374245]
[1731330344710,0.15089967,81987.0,81986.0,0.121972]
[1731330344964,0.15089967,81987.0,81986.0,0.122817]
[1731330345202,0.15889967,81987.0,81986.0,0.122817]
[1731330345608,0.15889967,81987.0,81986.0,0.000845]
[1731330346029,0.15889967,81987.0,81986.0,0.1265597]
[1731330346248,0.28086967,81987.0,81986.0,0.000845]
[1731330346469,0.28494281,81987.0,81986.0,0.000845]
[1731330347095,0.29494281,81987.0,81986.0,0.000845]
[1731330347302,0.28694281,81987.0,81986.0,0.000845]
[1731330347767,0.28594281,81987.0,81986.0,0.000845]
[1731330347971,0.17497281,81987.0,81986.0,0.000845]
[1731330348412,0.17497281,81987.0,81986.0,0.122817]
[1731330348628,0.17497281,81987.0,81986.0,0.12656]
[1731330349073,0.17497281,81987.0,81986.0,0.004588]
[1731330349074,0.29694281,81987.0,81986.0,0.004588]
[1731330349499,0.27694281,81987.0,81986.0,0.000845]
[1731330349732,0.30494281,81987.0,81986.0,0.000845]
[1731330350170,0.29094281,81987.0,81986.0,0.000845]
[1731330350595,0.85356427,81987.0,81986.0,0.000845]
[1731330350817,0.69744281,81987.0,81986.0,0.000845]
[1731330351038,0.66944281,81987.0,81986.0,0.000845]
[1731330351508,2.19744281,81987.0,81986.0,0.000845]
[1731330352150,2.60150648,81987.0,81986.0,0.000845]
[1731330352379,0.255,81977.0,81957.0,0.231827]
[1731330352596,0.63122721,81977.0,81959.0,0.122012]
[1731330352805,0.63122721,81977.0,81962.0,0.122007]
[1731330353051,0.63122721,81977.0,81963.0,0.122005]
[1731330353282,0.63122721,81977.0,81966.0,0.2318]
[1731330353283,2.13122721,81977.0,81966.0,0.2318]
[1731330353504,2.13122721,81977.0,81963.0,0.231809]
[1731330353721,0.25,81967.0,81966.0,0.118381]
[1731330353952,0.37594221,81967.0,81955.0,0.231834]
[1731330354182,0.25,81967.0,81966.0,0.0037656]
[1731330354433,0.25,81967.0,81959.0,0.23182]
[1731330354664,0.243978,81975.0,81963.0,0.23181]
[1731330354665,0.25,81975.0,81963.0,0.23181]
[1731330354909,0.25,81975.0,81960.0,0.005]
[1731330354910,0.43334607,81975.0,81969.0,0.231792]
[1731330355119,0.43334607,81975.0,81973.0,0.12199]
[1731330355355,0.45766309,81975.0,81970.0,0.00378215]
[1731330355573,0.45766309,81975.0,81974.0,0.00361091]
[1731330355790,0.48085923,81975.0,81968.0,0.121998]
[1731330356001,0.12594221,81973.0,81968.0,0.121998]
[1731330356240,0.12594221,81971.0,81969.0,0.00361395]
[1731330356698,0.12594221,81971.0,81968.0,0.121998]
[1731330356903,0.12594221,81971.0,81965.0,0.231806]
[1731330356904,0.25,81966.0,81965.0,0.122003]
[1731330357116,1.87594221,81966.0,81965.0,0.122003]
[1731330358244,1.62594221,81966.0,81965.0,0.122003]
[1731330358467,0.12594221,81966.0,81965.0,0.122003]
[1731330358929,0.12594221,81966.0,81965.0,0.12562082]
[1731330359195,0.13594221,81966.0,81965.0,0.12562082]
[1731330359421,0.13594221,81966.0,81965.0,0.122003]
[1731330359633,0.12594221,81966.0,81965.0,0.122003]
[1731330359906,0.14494221,81966.0,81965.0,0.122003]
[1731330360367,0.13594221,81966.0,81965.0,0.122003]
[1731330360987,0.13594221,81966.0,81965.0,0.12562008]
[1731330360988,0.14494221,81966.0,81965.0,0.12562008]
[1731330361930,0.14494221,81966.0,81965.0,0.18454499]
[1731330362162,0.14494221,81966.0,81965.0,0.12562008]
[1731330365589,1.64494221,81966.0,81965.0,0.12562008]
[1731330366051,1.64494221,81966.0,81955.0,0.005]
[1731330366052,0.0789,81965.0,81940.0,0.1]
[1731330366327,0.12594221,81964.0,81948.0,0.18334607]
[1731330366527,0.12594221,81964.0,81956.0,0.23183]
[1731330366528,0.18334607,81962.0,81956.0,0.23183]
[1731330366780,0.12594221,81961.0,81960.0,0.12201]
[1731330366988,1.62594221,81961.0,81960.0,0.12201]
[1731330367208,1.62594221,81961.0,81960.0,0.00361609]
[1731330367691,0.25,81957.0,81955.0,0.122017]
[1731330367901,0.25,81957.0,81956.0,0.122016]
[1731330368136,0.25,81957.0,81956.0,0.126046]
[1731330369001,0.37594221,81957.0,81956.0,0.00403]
[1731330369442,0.37594221,81957.0,81955.0,0.122017]
[1731330369670,0.12594221,81956.0,81955.0,0.122017]
[1731330369911,0.122018,81955.0,81950.0,0.122025]
[1731330370130,0.12594221,81954.0,81949.0,0.122026]
[1731330370372,1.5,81951.0,81949.0,0.122026]
[1731330370619,1.5,81951.0,81940.0,0.00422776]
[1731330370620,0.25,81947.0,81941.0,0.1]
[1731330370877,0.25,81947.0,81938.0,0.00638]
[1731330370878,0.12594221,81942.0,81938.0,0.00138]
[1731330371087,1.5,81939.0,81938.0,0.00138]
[1731330371317,1.62594221,81939.0,81938.0,0.00138]
[1731330373132,1.74798421,81939.0,81938.0,0.00138]
[1731330373334,1.63994221,81939.0,81938.0,0.123423]
[1731330373549,1.65394221,81939.0,81938.0,0.00138]
[1731330373973,1.63994221,81939.0,81938.0,0.00138]
[1731330374191,1.65394221,81939.0,81938.0,0.12774821]
[1731330374399,1.65394221,81939.0,81938.0,0.123423]
[1731330374636,1.63994221,81939.0,81938.0,0.00570521]
[1731330374852,1.90394221,81939.0,81938.0,0.00570521]
[1731330375074,1.91794221,81939.0,81938.0,0.12774821]
[1731330375284,1.91794221,81939.0,81938.0,0.00570521]
[1731330375528,1.91794221,81939.0,81938.0,0.29586967]
[1731330375738,0.16794221,81939.0,81938.0,0.12774821]
[1731330375946,0.042,81939.0,81938.0,0.22774821]
[1731330376155,0.15394221,81939.0,81938.0,0.22774821]
[1731330376359,0.15394221,81939.0,81938.0,0.12774821]
[1731330376575,0.13994221,81939.0,81938.0,0.12774821]
[1731330376796,0.39177417,81939.0,81938.0,0.12774821]
[1731330377070,0.40577417,81939.0,81938.0,0.12774821]
[1731330377282,0.14177417,81939.0,81938.0,0.12774821]
[1731330377488,0.14877417,81939.0,81938.0,0.12774821]
[1731330377701,0.14877417,81939.0,81938.0,0.14271097]
[1731330377910,0.13469997,81939.0,81938.0,0.14271097]
[1731330378140,0.15469997,81939.0,81938.0,0.24271097]
[1731330378362,0.39769997,81939.0,81938.0,0.12774821]
[1731330378569,0.39169997,81939.0,81938.0,0.12774821]
[1731330378987,0.39969997,81939.0,81938.0,0.12774821]
[1731330379413,0.14169997,81939.0,81938.0,0.14271711]
[1731330379627,0.0486,81959.0,81941.0,0.005]
[1731330379841,0.18334607,81960.0,81959.0,0.122012]
[1731330380052,0.18334607,81960.0,81959.0,0.1369809]
[1731330380258,0.18334607,81960.0,81959.0,0.16092299]
[1731330380463,0.25,81961.0,81960.0,0.12201]
[1731330380690,0.25,81961.0,81960.0,0.1369789]
[1731330380915,0.00169,81966.0,81965.0,0.122003]
[1731330381126,0.12763221,81966.0,81965.0,0.222003]
[1731330381337,0.00169,81966.0,81965.0,0.24594509]